lending/lending_fUSD_20250913
["ID","MTS","AMOUNT","RATE_DAILY","PERIOD"]
[385380235,1757802663236,-1576.09,0.00030136,2]
[385380236,1757802663245,-463.23,0.00030136,2]
[385380237,1757802663254,-493.63,0.00030136,2]
[385380238,1757802663264,-400.0,0.00030136,2]
[385380239,1757802663273,-400.0,0.00030136,2]
[385380240,1757802663282,-1080.61,0.00030136,2]
[385380241,1757802663291,-400.0,0.00030136,2]
[385380242,1757802663301,-445.19,0.00030136,2]
[385380243,1757802663311,-510.05,0.00030136,2]
[385380244,1757802663320,-400.0,0.00030136,2]
[385380245,1757802663330,-899.68,0.00030136,2]
[385380246,1757802663339,-400.0,0.00030136,2]
[385380247,1757802663348,-377.38755607,0.00030136,2]
[385380248,1757802663357,-1196.23,0.00030136,2]
[385380249,1757802663367,-400.0,0.00030136,2]
[385380250,1757802663376,-400.0,0.00030136,2]
[385380251,1757802663385,-688.9,0.00030136,2]
[385380252,1757802663394,-679.99,0.00030136,2]
[385380253,1757802663405,-574.64,0.00030136,2]
[385380254,1757802663414,-400.0,0.00030136,2]
[385380255,1757802663423,-561.16,0.00030136,2]
[385380256,1757802663433,-592.58,0.00030136,2]
[385380257,1757802663442,-647.8,0.00030136,2]
[385380258,1757802663452,-400.0,0.00030136,2]
[385380259,1757802663461,-982.24,0.00030136,2]
[385380260,1757802663470,-289.1512185,0.00030136,14]
[385380261,1757802663480,-867.52,0.00030136,2]
[385380262,1757802663490,-651.97,0.00030136,2]
[385380263,1757802663500,-1219.96,0.00030136,2]
[385380264,1757802663509,-431.08,0.00030136,2]
[385380265,1757802663518,-533.63,0.00030136,2]
[385380266,1757802663527,-400.0,0.00030136,2]
[385380267,1757802663537,-151.37749796,0.00030136,14]
[385380268,1757802663546,-400.0,0.00030136,2]
[385380269,1757802663555,-400.0,0.00030136,2]
[385380270,1757802663565,-400.0,0.00030136,2]
[385380271,1757802663574,-408.81,0.00030136,2]
[385380272,1757802663583,-925.67,0.00030136,2]
[385380273,1757802663592,-1133.12,0.00030136,2]
[385380274,1757802663601,-400.0,0.00030136,2]
[385380275,1757802663611,-400.0,0.00030136,2]
[385380276,1757802663620,-656.5,0.00030136,2]
[385380277,1757802663630,-205.643086,0.00030137,7]
[385380278,1757802663639,-600.05,0.00030143,2]
[385380279,1757802663649,-541.88,0.00030143,2]
[385380280,1757802663658,-763.8,0.00030143,2]
[385380281,1757802663667,-907.48,0.00030143,2]
[385380282,1757802663677,-642.7,0.00030143,2]
[385380283,1757802663686,-400.0,0.00030143,2]
[385380284,1757802663696,-476.49,0.00030143,2]
[385380285,1757802663705,-400.0,0.00030143,2]
[385380286,1757802663714,-400.0,0.00030143,2]
[385380287,1757802663723,-1084.69,0.00030143,2]
[385380288,1757802663732,-265.23453945,0.00030143,2]
[385380289,1757802663741,-683.37,0.00030143,2]
[385380290,1757802663750,-400.0,0.00030143,2]
[385380291,1757802663759,-400.0,0.00030143,2]
[385380292,1757802663769,-400.0,0.00030143,2]
[385380293,1757802663778,-400.0,0.00030143,2]
[385380294,1757802663787,-585.99,0.00030143,2]
[385380295,1757802663797,-767.67,0.00030143,2]
[385380296,1757802663806,-458.74926025,0.00030144,2]
[385380297,1757802663815,-400.0,0.00030144,2]
[385380298,1757802663825,-400.0,0.00030144,2]
[385380299,1757802663834,-400.0,0.00030144,2]
[385380300,1757802663843,-604.31,0.00030144,2]
[385380301,1757802663852,-150.0,0.0003018,2]
[385380302,1757802663861,-150.0,0.0003018,2]
[385380303,1757802663871,-500.0,0.0003018,2]
[385380304,1757802663880,-207.84411913,0.0003018,2]
[385380305,1757802663889,-10038.34728287,0.000302,2]
[385380306,1757802663899,-817.66954847,0.00030305,2]
[385380307,1757802663908,-500.0,0.00030326,120]
[385380308,1757802663917,-5500.0,0.00030352,5]
[385380309,1757802663927,-400.0,0.0003041,2]
[385380310,1757802663936,-1171.38,0.0003041,2]
[385380311,1757802663945,-434.59,0.0003041,2]
[385380312,1757802663955,-400.0,0.0003041,2]
[385380313,1757802663964,-175.55546158,0.0003041,2]
[385380314,1757802663974,-665.76,0.0003041,2]
[385380315,1757802663983,-476.28,0.0003041,2]
[385380316,1757802663993,-400.0,0.0003041,2]
[385380317,1757802664003,-552.07,0.0003041,2]
[385380318,1757802664012,-400.0,0.0003041,2]
[385380319,1757802664021,-400.0,0.0003041,2]
[385380320,1757802664030,-400.0,0.0003041,2]
[385380321,1757802664040,-534.36918553,0.0003041,2]
[385380322,1757802664050,-915.29,0.0003041,2]
[385380323,1757802664060,-400.0,0.0003041,2]
[385380324,1757802664070,-538.76,0.0003041,2]
[385380325,1757802664079,-712.38,0.0003041,2]
[385380326,1757802664088,-400.0,0.0003041,2]
[385380327,1757802664097,-2004.11,0.0003041,2]
[385380328,1757802664106,-400.0,0.0003041,2]
[385380329,1757802664116,-488.08,0.0003041,2]
[385380330,1757802664125,-400.0,0.0003041,2]
[385380331,1757802664134,-772.6,0.0003041,2]
[385380332,1757802664143,-451.15,0.0003041,2]
[385380333,1757802664153,-400.0,0.0003041,2]
[385380334,1757802664162,-858.39,0.0003041,2]
[385380335,1757802664171,-442.26,0.0003041,2]
[385380336,1757802664182,-834.55,0.0003041,2]
[385380337,1757802664191,-741.32,0.0003041,2]
[385380338,1757802664200,-884.83,0.0003041,2]
[385380339,1757802664210,-815.45,0.0003041,2]
[385380340,1757802664220,-480.86,0.0003041,2]
[385380341,1757802664230,-400.0,0.0003041,2]
[385380342,1757802664240,-400.0,0.0003041,2]
[385380343,1757802664250,-400.0,0.0003041,2]
[385380344,1757802664259,-1576.09,0.0003041,2]
[385380345,1757802664268,-463.23,0.0003041,2]
[385380346,1757802664278,-493.63,0.0003041,2]
[385380347,1757802664287,-400.0,0.0003041,2]
[385380348,1757802664297,-400.0,0.0003041,2]
[385380349,1757802664306,-1080.61,0.0003041,2]
[385380350,1757802664316,-400.0,0.0003041,2]
[385380351,1757802664325,-445.19,0.0003041,2]
[385380352,1757802664336,-510.05,0.0003041,2]
[385380353,1757802664345,-400.0,0.0003041,2]
[385380354,1757802664355,-899.68,0.0003041,2]
[385380355,1757802664364,-400.0,0.0003041,2]
[385380356,1757802664374,-1196.23,0.0003041,2]
[385380357,1757802664383,-400.0,0.0003041,2]
[385380358,1757802664392,-400.0,0.0003041,2]
[385380359,1757802664402,-688.9,0.0003041,2]
[385380360,1757802664412,-679.99,0.0003041,2]
[385380361,1757802664422,-574.64,0.0003041,2]
[385380362,1757802664431,-400.0,0.0003041,2]
[385380363,1757802664441,-561.16,0.0003041,2]
[385380364,1757802664451,-592.58,0.0003041,2]
[385380365,1757802664461,-647.8,0.0003041,2]
[385380366,1757802664470,-400.0,0.0003041,2]
[385380367,1757802664479,-982.24,0.0003041,2]
[385380368,1757802664488,-867.52,0.0003041,2]
[385380369,1757802664498,-651.97,0.0003041,2]
[385380370,1757802664508,-1219.96,0.0003041,2]
[385380371,1757802664517,-431.08,0.0003041,2]
[385380372,1757802664526,-533.63,0.0003041,2]
[385380373,1757802664537,-400.0,0.0003041,2]
[385380374,1757802664545,-400.0,0.0003041,2]
[385380375,1757802664554,-400.0,0.0003041,2]
[385380376,1757802664563,-400.0,0.0003041,2]
[385380377,1757802664572,-408.81,0.0003041,2]
[385380378,1757802664582,-925.67,0.0003041,2]
[385380379,1757802664591,-1133.12,0.0003041,2]
[385380380,1757802664600,-400.0,0.0003041,2]
[385380381,1757802664610,-400.0,0.0003041,2]
[385380382,1757802664619,-656.5,0.0003041,2]
[385380383,1757802664628,-600.05,0.00030417,2]
[385380384,1757802664638,-541.88,0.00030417,2]
[385380385,1757802664655,-763.8,0.00030417,2]
[385380386,1757802664673,-907.48,0.00030417,2]
[385380387,1757802664688,-642.7,0.00030417,2]
[385380388,1757802664697,-400.0,0.00030417,2]
[385380389,1757802664706,-476.49,0.00030417,2]
[385380390,1757802664715,-400.0,0.00030417,2]
[385380391,1757802664724,-400.0,0.00030417,2]
[385380392,1757802664733,-1084.69,0.00030417,2]
[385380393,1757802664743,-683.37,0.00030417,2]
[385380394,1757802664752,-409.02592156,0.00030417,2]
[385380395,1757802664761,-400.0,0.00030417,2]
[385380396,1757802664770,-400.0,0.00030417,2]
[385380397,1757802664779,-400.0,0.00030417,2]
[385380398,1757802664789,-585.99,0.00030417,2]
[385380399,1757802664798,-767.67,0.00030417,2]
[385380400,1757802664807,-400.0,0.00030418,2]
[385380401,1757802664817,-400.0,0.00030418,2]
[385380402,1757802664826,-400.0,0.00030418,2]
[385380403,1757802664835,-604.31,0.00030418,2]
[385380404,1757802664845,-979.94,0.00030424,120]
[385380405,1757802664854,-229.65664167,0.00030454,2]
[385380406,1757802664864,-500.0,0.00030454,2]
[385380407,1757802664874,-2000.0,0.00030457,120]
[385380408,1757802664883,-176.91,0.000305,30]
[385380409,1757802664892,-10038.34728287,0.000305,2]
[385380410,1757802664902,-500.0,0.0003053,120]
[385380411,1757802664911,-400.0,0.00030684,2]
[385380412,1757802664920,-1171.38,0.00030684,2]
[385380413,1757802664930,-434.59,0.00030684,2]
[385380414,1757802664943,-400.0,0.00030684,2]
[385380415,1757802664953,-665.76,0.00030684,2]
[385380416,1757802664963,-476.28,0.00030684,2]
[385380417,1757802664972,-400.0,0.00030684,2]
[385380418,1757802664982,-552.07,0.00030684,2]
[385380419,1757802664991,-400.0,0.00030684,2]
[385380420,1757802665001,-400.0,0.00030684,2]
[385380421,1757802665010,-400.0,0.00030684,2]
[385380422,1757802665022,-915.29,0.00030684,2]
[385380423,1757802665031,-400.0,0.00030684,2]
[385380424,1757802665040,-538.76,0.00030684,2]
[385380425,1757802665049,-712.38,0.00030684,2]
[385380426,1757802665058,-400.0,0.00030684,2]
[385380427,1757802665067,-2004.11,0.00030684,2]
[385380428,1757802665077,-521.63042899,0.00030684,2]
[385380429,1757802665086,-488.08,0.00030684,2]
[385380430,1757802665096,-400.0,0.00030684,2]
[385380431,1757802665106,-772.6,0.00030684,2]
[385380432,1757802665115,-451.15,0.00030684,2]
[385380433,1757802665126,-400.0,0.00030684,2]
[385380434,1757802665135,-858.39,0.00030684,2]
[385380435,1757802665144,-442.26,0.00030684,2]
[385380436,1757802665153,-834.55,0.00030684,2]
[385380437,1757802665164,-741.32,0.00030684,2]
[385380438,1757802665174,-884.83,0.00030684,2]
[385380439,1757802665183,-815.45,0.00030684,2]
[385380440,1757802665193,-480.86,0.00030684,2]
[385380441,1757802665204,-400.0,0.00030684,2]
[385380442,1757802665215,-453.17481005,0.00030684,2]
[385380443,1757802665224,-400.0,0.00030684,2]
[385380444,1757802665234,-1576.09,0.00030684,2]
[385380445,1757802665245,-463.23,0.00030684,2]
[385380446,1757802665255,-493.63,0.00030684,2]
[385380447,1757802665264,-322.18834719,0.00030684,2]
[385380448,1757802665274,-400.0,0.00030684,2]
[385380449,1757802665283,-1080.61,0.00030684,2]
[385380450,1757802665293,-400.0,0.00030684,2]
[385380451,1757802665304,-445.19,0.00030684,2]
[385380452,1757802665325,-510.05,0.00030684,2]
[385380453,1757802665336,-400.0,0.00030684,2]
[385380454,1757802665347,-899.68,0.00030684,2]
[385380455,1757802665358,-400.0,0.00030684,2]
[385380456,1757802665368,-1196.23,0.00030684,2]
[385380457,1757802665377,-400.0,0.00030684,2]
[385380458,1757802665387,-400.0,0.00030684,2]
[385380459,1757802665397,-688.9,0.00030684,2]
[385380460,1757802665407,-679.99,0.00030684,2]
[385380461,1757802665416,-574.64,0.00030684,2]
[385380462,1757802665426,-400.0,0.00030684,2]
[385380463,1757802665440,-561.16,0.00030684,2]
[385380464,1757802665452,-592.58,0.00030684,2]
[385380465,1757802665463,-647.8,0.00030684,2]
[385380466,1757802665476,-400.0,0.00030684,2]
[385380467,1757802665485,-982.24,0.00030684,2]
[385380468,1757802665495,-867.52,0.00030684,2]
[385380469,1757802665504,-651.97,0.00030684,2]
[385380470,1757802665514,-1219.96,0.00030684,2]
[385380471,1757802665523,-431.08,0.00030684,2]
[385380472,1757802665533,-533.63,0.00030684,2]
[385380473,1757802665542,-400.0,0.00030684,2]
[385380474,1757802665551,-400.0,0.00030684,2]
[385380475,1757802665561,-400.0,0.00030684,2]
[385380476,1757802665570,-432.25399349,0.00030684,2]
[385380477,1757802665580,-408.81,0.00030684,2]
[385380478,1757802665590,-925.67,0.00030684,2]
[385380479,1757802665599,-1133.12,0.00030684,2]
[385380480,1757802665610,-400.0,0.00030684,2]
[385380481,1757802665619,-252.07979986,0.00030684,2]
[385380482,1757802665629,-656.5,0.00030684,2]
[385380483,1757802665639,-500.0,0.00030686,120]
[385380484,1757802665648,-600.05,0.00030691,2]
[385380485,1757802665657,-541.88,0.00030691,2]
[385380486,1757802665666,-763.8,0.00030691,2]
[385380487,1757802665676,-907.48,0.00030691,2]
[385380488,1757802665686,-642.7,0.00030691,2]
[385380489,1757802665697,-400.0,0.00030691,2]
[385380490,1757802665707,-476.49,0.00030691,2]
[385380491,1757802665718,-400.0,0.00030691,2]
[385380492,1757802665729,-400.0,0.00030691,2]
[385380493,1757802665739,-1084.69,0.00030691,2]
[385380494,1757802665749,-683.37,0.00030691,2]
[385380495,1757802665759,-400.0,0.00030691,2]
[385380496,1757802665770,-400.0,0.00030691,2]
[385380497,1757802665780,-400.0,0.00030691,2]
[385380498,1757802665790,-585.99,0.00030691,2]
[385380499,1757802665799,-500.0,0.00030691,2]
[385380500,1757802665810,-767.67,0.00030691,2]
[385380501,1757802665819,-400.0,0.00030692,2]
[385380502,1757802665832,-400.0,0.00030692,2]
[385380503,1757802665843,-400.0,0.00030692,2]
[385380504,1757802665854,-604.31,0.00030692,2]
[385380505,1757802665863,-500.0,0.00030715,2]
[385380506,1757802665873,-10038.34728287,0.000308,2]
[385380507,1757802665882,-885.5577992,0.000308,2]
[385380508,1757802665892,-7989.71425681,0.00030839,2]
[385380509,1757802665902,-429.33261114,0.00030888,2]
[385380510,1757802665912,-17422.09289839,0.00030891,2]
[385380511,1757802665924,-6000.0,0.000309,5]
[385380512,1757802665933,-400.0,0.00030958,2]
[385380513,1757802665944,-1171.38,0.00030958,2]
[385380514,1757802665953,-434.59,0.00030958,2]
[385380515,1757802665963,-400.0,0.00030958,2]
[385380516,1757802665973,-665.76,0.00030958,2]
[385380517,1757802665984,-476.28,0.00030958,2]
[385380518,1757802665993,-290.00450571,0.00030958,2]
[385380519,1757802666002,-552.07,0.00030958,2]
[385380520,1757802666012,-400.0,0.00030958,2]
[385380521,1757802666021,-400.0,0.00030958,2]
[385380522,1757802666031,-400.0,0.00030958,2]
[385380523,1757802666040,-915.29,0.00030958,2]
[385380524,1757802666049,-400.0,0.00030958,2]
[385380525,1757802666059,-538.76,0.00030958,2]
[385380526,1757802666068,-712.38,0.00030958,2]
[385380527,1757802666078,-400.0,0.00030958,2]
[385380528,1757802666087,-2004.11,0.00030958,2]
[385380529,1757802666097,-488.08,0.00030958,2]
[385380530,1757802666107,-400.0,0.00030958,2]
[385380531,1757802666116,-772.6,0.00030958,2]
[385380532,1757802666126,-451.15,0.00030958,2]
[385380533,1757802666136,-400.0,0.00030958,2]
[385380534,1757802666145,-858.39,0.00030958,2]
[385380535,1757802666154,-442.26,0.00030958,2]
[385380536,1757802666164,-834.55,0.00030958,2]
[385380537,1757802666174,-741.32,0.00030958,2]
[385380538,1757802666183,-884.83,0.00030958,2]
[385380539,1757802666196,-815.45,0.00030958,2]
[385380540,1757802666209,-480.86,0.00030958,2]
[385380541,1757802666220,-400.0,0.00030958,2]
[385380542,1757802666231,-400.0,0.00030958,2]
[385380543,1757802666240,-1576.09,0.00030958,2]
[385380544,1757802666250,-463.23,0.00030958,2]
[385380545,1757802666259,-493.63,0.00030958,2]
[385380546,1757802666269,-400.0,0.00030958,2]
[385380547,1757802666280,-1080.61,0.00030958,2]
[385380548,1757802666290,-400.0,0.00030958,2]
[385380549,1757802666300,-445.19,0.00030958,2]
[385380550,1757802666312,-510.05,0.00030958,2]
[385380551,1757802666321,-400.0,0.00030958,2]
[385380552,1757802666331,-899.68,0.00030958,2]
[385380553,1757802666340,-400.0,0.00030958,2]
[385380554,1757802666351,-1196.23,0.00030958,2]
[385380555,1757802666361,-400.0,0.00030958,2]
[385380556,1757802666371,-400.0,0.00030958,2]
[385380557,1757802666381,-688.9,0.00030958,2]
[385380558,1757802666391,-679.99,0.00030958,2]
[385380559,1757802666401,-574.64,0.00030958,2]
[385380560,1757802666411,-275.49103403,0.00030958,2]
[385380561,1757802666420,-561.16,0.00030958,2]
[385380562,1757802666430,-592.58,0.00030958,2]
[385380563,1757802666444,-647.8,0.00030958,2]
[385380564,1757802666456,-400.0,0.00030958,2]
[385380565,1757802666466,-982.24,0.00030958,2]
[385380566,1757802666476,-867.52,0.00030958,2]
[385380567,1757802666486,-651.97,0.00030958,2]
[385380568,1757802666496,-1219.96,0.00030958,2]
[385380569,1757802666506,-431.08,0.00030958,2]
[385380570,1757802666515,-533.63,0.00030958,2]
[385380571,1757802666525,-400.0,0.00030958,2]
[385380572,1757802666534,-400.0,0.00030958,2]
[385380573,1757802666544,-525.55274244,0.00030958,2]
[385380574,1757802666554,-408.81,0.00030958,2]
[385380575,1757802666565,-925.67,0.00030958,2]
[385380576,1757802666576,-1133.12,0.00030958,2]
[385380577,1757802666586,-400.0,0.00030958,2]
[385380578,1757802666595,-656.5,0.00030958,2]
[385380579,1757802666605,-600.05,0.00030965,2]
[385380580,1757802666615,-541.88,0.00030965,2]
[385380581,1757802666624,-763.8,0.00030965,2]
[385380582,1757802666633,-907.48,0.00030965,2]
[385380583,1757802666643,-642.7,0.00030965,2]
[385380584,1757802666652,-400.0,0.00030965,2]
[385380585,1757802666662,-476.49,0.00030965,2]
[385380586,1757802666672,-400.0,0.00030965,2]
[385380587,1757802666683,-400.0,0.00030965,2]
[385380588,1757802666692,-1084.69,0.00030965,2]
[385380589,1757802666702,-683.37,0.00030965,2]
[385380590,1757802666712,-400.0,0.00030965,2]
[385380591,1757802666722,-400.0,0.00030965,2]
[385380592,1757802666731,-400.0,0.00030965,2]
[385380593,1757802666741,-585.99,0.00030965,2]
[385380594,1757802666751,-767.67,0.00030965,2]
[385380595,1757802666760,-400.0,0.00030966,2]
[385380596,1757802666770,-229.53111271,0.00030966,2]
[385380597,1757802666780,-400.0,0.00030966,2]
[385380598,1757802666790,-604.31,0.00030966,2]
[385380599,1757802666800,-160.0,0.00030981,2]
[385380600,1757802666809,-212.99211257,0.00030981,2]
[385380601,1757802666819,-160.0,0.00030981,2]
[385380602,1757802666829,-515.60081738,0.00030981,2]
[385380603,1757802666839,-160.0,0.00030983,2]
[385380604,1757802666849,-1506.313838,0.00031,5]
[385380605,1757802666858,-10038.34728287,0.000311,2]
[385380606,1757802666868,-155.37,0.0003112,2]
[385380607,1757802666879,-284.0,0.0003113,2]
[385380608,1757802666888,-400.0,0.00031232,2]
[385380609,1757802666898,-1171.38,0.00031232,2]
[385380610,1757802666907,-434.59,0.00031232,2]
[385380611,1757802666917,-400.0,0.00031232,2]
[385380612,1757802666926,-665.76,0.00031232,2]
[385380613,1757802666937,-476.28,0.00031232,2]
[385380614,1757802666948,-552.07,0.00031232,2]
[385380615,1757802666957,-400.0,0.00031232,2]
[385380616,1757802666967,-400.0,0.00031232,2]
[385380617,1757802666978,-400.0,0.00031232,2]
[385380618,1757802666988,-915.29,0.00031232,2]
[385380619,1757802666997,-400.0,0.00031232,2]
[385380620,1757802667007,-538.76,0.00031232,2]
[385380621,1757802667019,-712.38,0.00031232,2]
[385380622,1757802667029,-193.45757351,0.00031232,2]
[385380623,1757802667039,-2004.11,0.00031232,2]
[385380624,1757802667048,-488.08,0.00031232,2]
[385380625,1757802667059,-208.95814202,0.00031232,2]
[385380626,1757802667068,-772.6,0.00031232,2]
[385380627,1757802667078,-451.15,0.00031232,2]
[385380628,1757802667088,-400.0,0.00031232,2]
[385380629,1757802667097,-858.39,0.00031232,2]
[385380630,1757802667107,-442.26,0.00031232,2]
[385380631,1757802667117,-834.55,0.00031232,2]
[385380632,1757802667126,-741.32,0.00031232,2]
[385380633,1757802667136,-884.83,0.00031232,2]
[385380634,1757802667146,-815.45,0.00031232,2]
[385380635,1757802667156,-480.86,0.00031232,2]
[385380636,1757802667165,-400.0,0.00031232,2]
[385380637,1757802667175,-400.0,0.00031232,2]
[385380638,1757802667184,-1576.09,0.00031232,2]
[385380639,1757802667194,-463.23,0.00031232,2]
[385380640,1757802667203,-493.63,0.00031232,2]
[385380641,1757802667212,-400.0,0.00031232,2]
[385380642,1757802667222,-1080.61,0.00031232,2]
[385380643,1757802667232,-400.0,0.00031232,2]
[385380644,1757802667241,-445.19,0.00031232,2]
[385380645,1757802667251,-510.05,0.00031232,2]
[385380646,1757802667261,-400.0,0.00031232,2]
[385380647,1757802667271,-899.68,0.00031232,2]
[385380648,1757802667480,-181.20501154,0.00031232,2]
[385380649,1757802667496,-1196.23,0.00031232,2]
[385380650,1757802667505,-337.17312272,0.00031232,2]
[385380651,1757802667515,-400.0,0.00031232,2]
[385380652,1757802667524,-688.9,0.00031232,2]
[385380653,1757802667533,-679.99,0.00031232,2]
[385380654,1757802667542,-574.64,0.00031232,2]
[385380655,1757802667551,-561.16,0.00031232,2]
[385380656,1757802667560,-592.58,0.00031232,2]
[385380657,1757802667569,-647.8,0.00031232,2]
[385380658,1757802667579,-420.86910591,0.00031232,2]
[385380659,1757802667589,-982.24,0.00031232,2]
[385380660,1757802667598,-867.52,0.00031232,2]
[385380661,1757802667608,-651.97,0.00031232,2]
[385380662,1757802667618,-1219.96,0.00031232,2]
[385380663,1757802667628,-431.08,0.00031232,2]
[385380664,1757802667637,-533.63,0.00031232,2]
[385380665,1757802667646,-400.0,0.00031232,2]
[385380666,1757802667655,-510.86694173,0.00031232,2]
[385380667,1757802667665,-408.81,0.00031232,2]
[385380668,1757802667674,-925.67,0.00031232,2]
[385380669,1757802667683,-1133.12,0.00031232,2]
[385380670,1757802667693,-400.0,0.00031232,2]
[385380671,1757802667702,-656.5,0.00031232,2]
[385380672,1757802667712,-600.05,0.00031239,2]
[385380673,1757802667721,-541.88,0.00031239,2]
[385380674,1757802667730,-763.8,0.00031239,2]
[385380675,1757802667742,-907.48,0.00031239,2]
[385380676,1757802667751,-642.7,0.00031239,2]
[385380677,1757802667761,-400.0,0.00031239,2]
[385380678,1757802667772,-476.49,0.00031239,2]
[385380679,1757802667782,-400.0,0.00031239,2]
[385380680,1757802667792,-400.0,0.00031239,2]
[385380681,1757802667801,-1084.69,0.00031239,2]
[385380682,1757802667811,-683.37,0.00031239,2]
[385380683,1757802667820,-400.0,0.00031239,2]
[385380684,1757802667829,-400.0,0.00031239,2]
[385380685,1757802667838,-400.0,0.00031239,2]
[385380686,1757802667847,-585.99,0.00031239,2]
[385380687,1757802667857,-767.67,0.00031239,2]
[385380688,1757802667866,-400.0,0.0003124,2]
[385380689,1757802667875,-400.0,0.0003124,2]
[385380690,1757802667884,-604.31,0.0003124,2]
[385380691,1757802667894,-383.71160024,0.0003128,2]
[385380692,1757802667903,-159.01134391,0.0003132,2]
[385380693,1757802667912,-309.29654756,0.00031354,2]
[385380694,1757802667922,-10038.34728287,0.000314,2]
[385380695,1757802667932,-518.37,0.000314,7]
[385380696,1757802667941,-17497.52,0.000314,7]
[385380697,1757802667951,-4000.0,0.00031429,4]
[385380698,1757802667961,-6500.0,0.00031448,5]
[385380699,1757802667970,-400.0,0.00031506,2]
[385380700,1757802667979,-1171.38,0.00031506,2]
[385380701,1757802667989,-434.59,0.00031506,2]
[385380702,1757802667999,-278.56193332,0.00031506,2]
[385380703,1757802668008,-665.76,0.00031506,2]
[385380704,1757802668018,-476.28,0.00031506,2]
[385380705,1757802668027,-552.07,0.00031506,2]
[385380706,1757802668037,-150.0,0.00031506,2]
[385380707,1757802668046,-400.0,0.00031506,2]
[385380708,1757802668055,-400.0,0.00031506,2]
[385380709,1757802668065,-230.43742917,0.00031506,2]
[385380710,1757802668075,-657.93252726,0.00031506,14]
[385380711,1757802668084,-915.29,0.00031506,2]
[385380712,1757802668094,-400.0,0.00031506,2]
[385380713,1757802668103,-538.76,0.00031506,2]
[385380714,1757802668113,-712.38,0.00031506,2]
[385380715,1757802668124,-2004.11,0.00031506,2]
[385380716,1757802668133,-488.08,0.00031506,2]
[385380717,1757802668142,-772.6,0.00031506,2]
[385380718,1757802668152,-451.15,0.00031506,2]
[385380719,1757802668162,-400.0,0.00031506,2]
[385380720,1757802668171,-858.39,0.00031506,2]
[385380721,1757802668180,-442.26,0.00031506,2]
[385380722,1757802668190,-834.55,0.00031506,2]
[385380723,1757802668199,-741.32,0.00031506,2]
[385380724,1757802668209,-884.83,0.00031506,2]
[385380725,1757802668218,-815.45,0.00031506,2]
[385380726,1757802668228,-480.86,0.00031506,2]
[385380727,1757802668237,-400.0,0.00031506,2]
[385380728,1757802668246,-400.0,0.00031506,2]
[385380729,1757802668256,-1576.09,0.00031506,2]
[385380730,1757802668265,-463.23,0.00031506,2]
[385380731,1757802668274,-493.63,0.00031506,2]
[385380732,1757802668283,-400.0,0.00031506,2]
[385380733,1757802668293,-1080.61,0.00031506,2]
[385380734,1757802668302,-400.0,0.00031506,2]